bitfinex/quotes_BTCUSD_20230117
["timestamp","ask_amount","ask_price","bid_price","bid_amount"]
[1673965839553,0.05497823,21220.0,21219.0,0.320512]
[1673965839814,0.04789642,21220.0,21219.0,0.320512]
[1673965840072,0.05381915,21223.0,21219.0,0.99383524]
[1673965840388,0.05381915,21223.0,21220.0,0.85252214]
[1673965840598,0.15,21231.0,21222.0,0.47720169]
[1673965840861,0.15,21231.0,21224.0,1.413486]
[1673965840862,0.04790071,21228.0,21224.0,1.413486]
[1673965841122,0.04789642,21226.0,21225.0,0.620512]
[1673965841393,1.04508484,21229.0,21225.0,1.49682231]
[1673965841693,1.04508484,21229.0,21226.0,0.85252214]
[1673965841953,1.04508484,21229.0,21227.0,1.05003014]
[1673965842215,0.15,21231.0,21227.0,1.05003014]
[1673965842216,0.15,21231.0,21228.0,0.85245514]
[1673965842475,0.19898808,21231.0,21229.0,1.05004314]
[1673965842731,0.15,21234.0,21229.0,1.05004314]
[1673965842732,0.15,21234.0,21230.0,0.85242114]
[1673965843010,0.00536798,21236.0,21231.0,0.509512]
[1673965843282,0.00351504,21248.0,21233.0,0.65010169]
[1673965843536,0.00351504,21248.0,21234.0,0.509478]
[1673965843537,0.15,21240.0,21234.0,0.509478]
[1673965843804,0.00351504,21248.0,21235.0,2.38102311]
[1673965844100,0.15,21243.0,21236.0,1.109457]
[1673965844608,0.00351504,21248.0,21240.0,0.47720169]
[1673965844612,0.00351504,21248.0,21242.0,0.1729]
[1673965844886,0.14336,21251.0,21247.0,0.70672517]
[1673965845156,0.36479377,21260.0,21248.0,0.620108]
[1673965845412,2.703086,21265.0,21250.0,0.47720169]
[1673965845413,0.43960074,21264.0,21250.0,0.47720169]
[1673965845726,0.43960074,21264.0,21249.0,0.59815632]
[1673965845727,0.43960074,21266.0,21251.0,1.48609612]
[1673965845978,0.43960074,21267.0,21256.0,0.940884]
[1673965846271,0.43960074,21271.0,21258.0,0.71240169]
[1673965846548,1.48043633,21272.0,21263.0,0.23515]
[1673965846802,1.48043633,21272.0,21264.0,0.319869]
[1673965847084,1.47893389,21272.0,21267.0,0.47720169]
[1673965847350,0.73821492,21272.0,21270.0,0.47720169]
[1673965847621,0.0318051,21282.0,21271.0,0.53201014]
[1673965847622,0.47187144,21282.0,21271.0,0.53201014]
[1673965847878,0.0312387,21282.0,21272.0,0.95613784]
[1673965848150,0.22168145,21282.0,21272.0,0.44243457]
[1673965848656,0.22168145,21282.0,21275.0,0.470035]
[1673965848671,0.19072595,21281.0,21275.0,0.470035]
[1673965848918,0.0309555,21282.0,21275.0,0.470035]
[1673965849175,0.0309555,21282.0,21272.0,0.1729]
[1673965849176,0.6,21280.0,21272.0,0.16181]
[1673965849439,0.320254,21279.0,21275.0,0.04945113]
[1673965849739,0.79745569,21278.0,21268.0,0.51789117]
[1673965849958,1.4306535,21277.0,21271.0,0.04817458]
[1673965850214,1.4306535,21277.0,21264.0,0.620274]
[1673965850215,1.4306535,21277.0,21264.0,0.15]
[1673965850216,0.6,21275.0,21264.0,0.15]
[1673965850468,0.6,21275.0,21267.0,0.04986691]
[1673965850469,0.76238936,21274.0,21267.0,0.04986691]
[1673965850723,1.37293864,21277.0,21271.0,0.15]
[1673965850724,0.320254,21273.0,21271.0,0.15]
[1673965851022,0.44247186,21276.0,21271.0,0.15]
[1673965851023,0.47720169,21272.0,21271.0,0.15]
[1673965851243,0.79745569,21272.0,21264.0,0.15]
[1673965851506,1.4306535,21271.0,21268.0,0.04837009]
[1673965851777,1.4306535,21271.0,21264.0,0.15]
[1673965851778,0.320254,21270.0,21264.0,0.15]
[1673965852041,0.19072595,21271.0,21254.0,0.631429]
[1673965852042,0.47720169,21265.0,21254.0,0.470489]
[1673965852506,0.47720169,21265.0,21249.0,0.15857]
[1673965852507,0.47720169,21263.0,21245.0,0.1573]
[1673965852515,1.4253428,21264.0,21250.0,0.470579]
[1673965852770,0.66792764,21262.0,21252.0,0.470535]
[1673965853048,0.94814111,21261.0,21252.0,0.470535]
[1673965853301,4.70331657,21276.0,21261.0,0.1729]
[1673965853588,6e-05,21281.0,21263.0,0.27878465]
[1673965853589,4.70337657,21281.0,21263.0,0.27878465]
[1673965853843,0.0309555,21282.0,21265.0,0.45155971]
[1673965853844,0.15,21273.0,21265.0,0.45155971]
[1673965854096,0.00684786,21273.0,21267.0,1.410603]
[1673965854366,0.00684786,21273.0,21269.0,0.27846715]
[1673965854626,4.70331657,21276.0,21270.0,1.93397274]
[1673965854627,0.1362341,21272.0,21270.0,1.93397274]
[1673965854933,4.70331657,21276.0,21271.0,0.27838821]
[1673965855192,4.70331657,21276.0,21273.0,0.513305]
[1673965855447,4.70331657,21276.0,21274.0,0.28698952]
[1673965855701,4.70331657,21276.0,21275.0,0.5783664]
[1673965855970,4.70331657,21276.0,21275.0,0.94857]
[1673965856459,0.0309555,21282.0,21275.0,1.24857]
[1673965856460,4.70331657,21279.0,21275.0,1.24857]
[1673965856468,4.70331657,21279.0,21275.0,1.99703147]
[1673965856716,4.70331657,21281.0,21275.0,0.94857]
[1673965856975,0.0309555,21282.0,21275.0,1.22701093]
[1673965856976,0.15,21280.0,21275.0,1.22701093]
[1673965857230,0.15,21280.0,21276.0,0.320292]
[1673965857497,0.0309555,21282.0,21275.0,0.94007]
[1673965857768,0.0309555,21282.0,21277.0,0.469986]
[1673965858024,0.0309555,21282.0,21277.0,0.6109916]
[1673965858285,0.0309555,21282.0,21277.0,0.469986]
[1673965858546,0.0309555,21282.0,21277.0,0.51954107]
[1673965859032,6e-05,21279.0,21278.0,0.320292]
[1673965859042,6e-05,21279.0,21277.0,0.51954107]
[1673965859297,6e-05,21279.0,21278.0,0.79026]
[1673965859836,6e-05,21279.0,21278.0,0.79876]
[1673965860239,6e-05,21279.0,21278.0,0.79026]
[1673965860413,6e-05,21279.0,21278.0,1.0684474]
[1673965860675,0.0309555,21282.0,21278.0,0.79026]
[1673965860676,0.02346021,21282.0,21278.0,0.79026]
[1673965860923,0.01846021,21282.0,21279.0,0.319306]
[1673965861182,0.20918616,21282.0,21280.0,0.320256]
[1673965861458,0.01846021,21282.0,21280.0,0.469924]
[1673965861701,0.01846021,21282.0,21277.0,0.04814743]
[1673965861963,0.320292,21281.0,21279.0,0.469945]
[1673965862224,0.20918616,21282.0,21277.0,0.51812843]
[1673965862480,0.20918616,21282.0,21277.0,0.51811843]
[1673965863646,0.01846021,21282.0,21277.0,0.51811843]
[1673965863922,0.20918616,21282.0,21278.0,0.320292]
[1673965864234,0.20918616,21282.0,21279.0,1.559186]
[1673965864235,0.01846021,21282.0,21279.0,1.559186]
[1673965864503,0.01846021,21282.0,21280.0,0.32026]
[1673965864760,0.01846021,21282.0,21281.0,1.259075]
[1673965865018,0.01093834,21282.0,21281.0,1.259075]
[1673965865293,0.01093834,21282.0,21281.0,0.78733375]
[1673965865551,0.00347062,21282.0,21281.0,0.78733375]
[1673965865807,0.15311358,21288.0,21281.0,0.78733375]
[1673965866065,0.10656,21282.0,21281.0,0.012]
[1673965866336,0.426696,21282.0,21281.0,0.012]
[1673965866604,0.426696,21282.0,21281.0,0.06182647]
[1673965866605,0.321136,21282.0,21281.0,0.06182647]
[1673965866872,0.321136,21282.0,21281.0,0.11602]
[1673965866873,0.001,21282.0,21281.0,0.11602]
[1673965867137,0.001,21282.0,21281.0,0.906058]
[1673965867398,0.001,21282.0,21281.0,0.9646528]
[1673965867659,0.19072595,21287.0,21281.0,0.9646528]
[1673965867660,0.19072595,21287.0,21282.0,0.00043772]
[1673965867973,0.15311358,21288.0,21283.0,1.086173]
[1673965867974,0.15261472,21288.0,21283.0,1.086173]
[1673965868193,0.15211677,21288.0,21284.0,0.620083]
[1673965868454,0.15211677,21288.0,21285.0,0.3024407]
[1673965868455,0.12658246,21288.0,21285.0,0.3024407]
[1673965868718,0.12658246,21288.0,21281.0,0.45421772]
[1673965868719,0.23494,21286.0,21275.0,0.24985803]
[1673965868989,0.65549995,21287.0,21271.0,0.15]
[1673965868990,0.47720169,21277.0,21271.0,0.15]
[1673965869276,0.555136,21276.0,21271.0,0.15]
[1673965869537,0.320116,21275.0,21271.0,0.15]
[1673965869786,0.47720169,21272.0,21271.0,0.15]
[1673965870037,0.9540732,21272.0,21271.0,0.15]
[1673965870289,0.9540732,21272.0,21269.0,0.01477278]
[1673965870290,0.37645125,21272.0,21269.0,0.01477278]
[1673965870616,0.30458892,21271.0,21270.0,0.460126]
[1673965870826,0.006,21276.0,21270.0,0.87480228]
[1673965871098,0.006,21276.0,21269.0,0.48493678]
[1673965871099,0.04771754,21274.0,21271.0,0.48765076]
[1673965871358,0.469885,21282.0,21271.0,0.93340076]
[1673965871628,1.069777,21287.0,21281.0,0.15]
[1673965872203,0.007075,21291.0,21281.0,0.15]
[1673965872204,0.04876295,21282.0,21281.0,0.15]
[1673965872459,0.00752815,21295.0,21281.0,0.15]
[1673965872460,0.40754828,21295.0,21281.0,1.240072]
[1673965872724,0.08132899,21287.0,21283.0,0.1729]
[1673965872984,0.00715886,21295.0,21284.0,0.32017]
[1673965872985,0.19072595,21294.0,21284.0,0.32017]
[1673965873252,0.00715886,21295.0,21286.0,0.939558]
[1673965873253,0.005,21287.0,21286.0,0.939558]
[1673965873507,0.00715886,21295.0,21287.0,0.1729]
[1673965873508,0.00376796,21295.0,21287.0,0.1729]
[1673965873766,0.00376796,21295.0,21289.0,1.174294]
[1673965873767,0.005,21295.0,21289.0,1.174294]
[1673965874036,0.14802876,21299.0,21289.0,1.174294]
[1673965874037,0.14802876,21299.0,21290.0,0.620059]
[1673965874294,0.14802876,21299.0,21291.0,0.024085]
[1673965874295,0.19059859,21298.0,21291.0,0.024085]
[1673965874560,0.19059859,21298.0,21292.0,0.03999812]
[1673965874561,0.47720169,21297.0,21292.0,0.03999812]
[1673965874828,0.7937771,21296.0,21292.0,0.03999812]
[1673965875083,0.57691888,21299.0,21290.0,0.00097148]
[1673965875084,0.32017,21295.0,21290.0,0.00097148]
[1673965875341,0.14802876,21299.0,21290.0,0.00597148]
[1673965875601,0.57506394,21299.0,21295.0,0.32017]
[1673965876056,0.35152807,21300.0,21295.0,0.32017]
[1673965876066,0.47720169,21299.0,21296.0,0.03999812]
[1673965876317,0.35152807,21300.0,21296.0,0.03999812]
[1673965876318,0.47720169,21298.0,21296.0,0.03999812]
[1673965876601,0.35152807,21300.0,21295.0,0.32017]
[1673965876859,0.35152807,21300.0,21296.0,0.36008212]
[1673965877150,0.35152807,21300.0,21297.0,0.07348]
[1673965877400,0.66792764,21299.0,21295.0,0.32113278]
[1673965877655,0.42202957,21298.0,21295.0,0.32113278]
[1673965877909,0.42202957,21298.0,21290.0,0.15]
[1673965877910,0.47720169,21291.0,21290.0,0.15]
[1673965878171,0.47720169,21291.0,21286.0,0.15]
[1673965878172,0.320084,21291.0,21286.0,0.15]
[1673965878610,0.320084,21290.0,21286.0,0.619791]
[1673965878615,0.42809904,21297.0,21286.0,0.619791]
[1673965878841,0.14744604,21296.0,21291.0,0.1713]
[1673965879064,0.42732999,21302.0,21292.0,1.42812995]
[1673965879341,0.15,21303.0,21293.0,0.51074095]
[1673965879602,0.15,21303.0,21295.0,0.939182]
[1673965879603,0.34310939,21300.0,21295.0,0.939182]
[1673965879929,0.33485244,21300.0,21296.0,0.51069295]
[1673965880205,0.084,21299.0,21297.0,1.42784095]
[1673965880482,0.33485244,21300.0,21297.0,1.42784095]
[1673965880483,0.33485244,21300.0,21298.0,0.65344504]
[1673965880743,0.008,21300.0,21299.0,1.72772795]
[1673965881181,0.15,21306.0,21300.0,0.01338683]
[1673965881182,0.14895942,21306.0,21300.0,0.01338683]
[1673965881191,0.13243188,21306.0,21300.0,0.01338683]
[1673965881415,0.10810083,21309.0,21301.0,1.92744495]
[1673965881648,0.62883012,21308.0,21301.0,0.19072595]
[1673965881866,0.47720169,21306.0,21301.0,0.19025931]
[1673965882099,0.57740483,21309.0,21300.0,0.01338683]
[1673965882100,0.32011,21305.0,21300.0,0.01338683]
[1673965882317,0.32011,21304.0,21300.0,0.01338683]
[1673965882541,1.02637904,21308.0,21300.0,0.01338683]
[1673965882542,0.32011,21303.0,21300.0,0.01338683]
[1673965882769,0.42637904,21308.0,21300.0,0.95234183]
[1673965882993,0.10810083,21309.0,21305.0,0.4837494]
[1673965883219,0.43361579,21313.0,21306.0,0.49592695]
[1673965883220,0.47720169,21308.0,21306.0,0.49592695]
[1673965883431,0.00784102,21309.0,21306.0,0.19072595]
[1673965883735,0.00784102,21309.0,21307.0,0.19072595]
[1673965883997,0.00784102,21309.0,21305.0,0.4837494]
[1673965883998,0.48420169,21308.0,21305.0,0.4837494]
[1673965884252,0.79722869,21307.0,21305.0,0.4837494]
[1673965884509,0.47714502,21309.0,21305.0,0.47651499]
[1673965884510,0.320027,21306.0,21305.0,0.47651499]
[1673965885041,0.00784102,21309.0,21305.0,0.47651499]
[1673965885042,0.01484102,21309.0,21307.0,0.004]
[1673965885304,0.00784102,21309.0,21307.0,0.19072595]
[1673965885840,0.00784102,21309.0,21308.0,0.320027]
[1673965886150,0.00784102,21309.0,21308.0,0.789334]
[1673965886622,0.00784102,21309.0,21308.0,1.4314386]
[1673965886873,0.00784102,21309.0,21308.0,0.9621316]
[1673965887140,0.00725644,21310.0,21308.0,0.789334]
[1673965887476,0.00725644,21310.0,21309.0,0.305042]
[1673965887670,0.00725644,21310.0,21309.0,0.774327]
[1673965887929,0.00784267,21317.0,21310.0,0.00588252]
[1673965888189,0.00784267,21317.0,21311.0,0.19072595]
[1673965888457,0.00784267,21317.0,21312.0,0.48887985]
[1673965888732,0.00784267,21317.0,21312.0,0.320027]
[1673965889261,0.11279675,21313.0,21312.0,0.320027]
[1673965889539,0.57064379,21313.0,21310.0,0.00588252]
[1673965889792,0.320027,21312.0,21311.0,0.079]
[1673965890063,0.79722869,21312.0,21310.0,0.00588252]
[1673965890317,0.320027,21311.0,21310.0,0.10990252]
[1673965890585,0.00784267,21317.0,21310.0,0.63784807]
[1673965890850,0.00784267,21317.0,21311.0,0.50270195]
[1673965890851,0.013,21312.0,21311.0,0.50270195]
[1673965891108,0.15793303,21318.0,21312.0,0.01926865]
[1673965891642,0.15793303,21318.0,21313.0,1.92673695]
[1673965891650,0.00793303,21318.0,21313.0,1.92673695]
[1673965891947,0.00793303,21318.0,21314.0,0.30493]
[1673965892212,0.00793303,21318.0,21312.0,0.16926865]
[1673965892213,0.47720169,21315.0,21312.0,0.16926865]
[1673965892477,0.47720169,21313.0,21305.0,0.47651499]
[1673965892741,1.10824788,21314.0,21305.0,0.47651499]
[1673965892742,0.47720169,21311.0,21305.0,0.47651499]
[1673965893008,0.47720169,21309.0,21305.0,0.47651499]
[1673965893271,0.9377294,21308.0,21305.0,0.47651499]
[1673965893525,0.9377294,21308.0,21300.0,0.01338683]
[1673965893526,0.9377294,21307.0,21300.0,0.01338683]
[1673965893785,0.9377294,21307.0,21305.0,0.005]
[1673965893786,1.36430512,21306.0,21305.0,0.005]
[1673965894070,1.36430512,21306.0,21300.0,0.01338683]
[1673965894071,1.26657969,21306.0,21300.0,0.01338683]
[1673965894319,0.320027,21305.0,21300.0,0.01338683]
[1673965894582,0.14050071,21305.0,21300.0,0.67357878]
[1673965894845,0.14050071,21305.0,21301.0,0.38738488]
[1673965895115,0.15,21306.0,21302.0,1.244128]
[1673965895593,0.027,21309.0,21302.0,0.469437]
[1673965895598,0.88575007,21313.0,21302.0,0.469437]
[1673965895858,0.002,21305.0,21303.0,0.62580167]
[1673965896113,0.15,21312.0,21304.0,0.469395]
[1673965896365,0.1434,21312.0,21305.0,1.03205777]
[1673965896661,0.1434,21312.0,21307.0,0.938654]
[1673965896885,0.002,21313.0,21307.0,0.19072595]
[1673965897143,0.320027,21312.0,21308.0,0.19922595]
[1673965897402,0.002,21313.0,21309.0,0.98003295]
[1673965897671,0.002,21313.0,21310.0,0.49573295]
[1673965897963,0.00793303,21318.0,21311.0,0.789235]
[1673965898172,0.00793303,21318.0,21312.0,0.49570295]
[1673965898450,0.00793303,21318.0,21313.0,0.97986195]
[1673965898682,0.00793303,21318.0,21314.0,0.80417295]
[1673965898933,0.00793303,21318.0,21315.0,1.44894695]
[1673965899220,0.00793303,21318.0,21316.0,0.6391617]
[1673965899448,0.00793303,21318.0,21317.0,1.258111]
[1673965899705,0.00853865,21327.0,21317.0,1.75733695]
[1673965899960,0.00853865,21327.0,21318.0,1.37218867]
[1673965899961,0.47720169,21326.0,21318.0,1.37218867]
[1673965900230,0.13662962,21327.0,21320.0,1.407081]
[1673965900231,0.00853865,21327.0,21320.0,1.407081]
[1673965900491,0.00853865,21327.0,21321.0,0.313343]
[1673965900737,0.00853865,21327.0,21322.0,1.726745]
[1673965900991,0.13662962,21327.0,21322.0,0.19072595]
[1673965901236,0.320027,21326.0,21320.0,0.469027]
[1673965901495,0.00853865,21327.0,21320.0,0.469027]
[1673965901496,0.00853865,21327.0,21322.0,0.468981]
[1673965901816,0.00853865,21327.0,21323.0,0.320027]
[1673965902027,0.13662962,21327.0,21324.0,0.320027]
[1673965902307,0.13662962,21327.0,21321.0,0.468999]
[1673965902308,0.00853865,21327.0,21321.0,0.468999]
[1673965902568,0.60529266,21326.0,21322.0,0.07]
[1673965902822,0.00853865,21327.0,21322.0,0.07]
[1673965902823,0.92531966,21325.0,21322.0,0.07]
[1673965903297,0.92531966,21324.0,21313.0,0.469196]
[1673965903307,0.47720169,21323.0,21311.0,0.469234]
[1673965903570,0.47720169,21319.0,21308.0,0.469291]
[1673965903828,1.1260675,21318.0,21309.0,0.469269]
[1673965904086,1.02358075,21317.0,21305.0,0.56645572]
[1673965904410,0.87365254,21316.0,21308.0,0.469296]
[1673965904858,0.44811797,21315.0,21308.0,0.33151965]
[1673965904860,0.92531966,21315.0,21307.0,0.469308]
[1673965905122,1.80037432,21314.0,21309.0,0.007]
[1673965905384,1.10535709,21313.0,21309.0,0.007]
[1673965905648,1.68254156,21312.0,21309.0,0.007]
[1673965905905,1.68254156,21312.0,21304.0,0.01301927]
[1673965905906,0.007,21309.0,21304.0,0.01301927]
[1673965906170,0.42880679,21306.0,21304.0,0.01301927]
[1673965906417,0.92531966,21305.0,21304.0,0.01301927]
[1673965906682,0.79722869,21305.0,21304.0,0.01301927]
[1673965907452,0.79722869,21305.0,21304.0,0.11703927]
[1673965907453,0.320027,21305.0,21304.0,0.11703927]
[1673965907706,0.320027,21305.0,21304.0,0.01301927]
[1673965907975,0.157,21309.0,21304.0,0.01301927]
[1673965908240,0.091,21306.0,21304.0,0.20374522]
[1673965908508,0.28009098,21309.0,21304.0,0.20374522]
[1673965908509,0.320027,21305.0,21304.0,0.01301927]
[1673965908761,0.70974888,21305.0,21304.0,0.01301927]
[1673965909007,0.61874888,21305.0,21304.0,0.01301927]
[1673965909274,0.61874888,21305.0,21304.0,1.927e-05]
[1673965909275,1.51396659,21305.0,21304.0,1.927e-05]
[1673965909556,0.10686192,21303.0,21302.0,0.01301927]
[1673965909785,0.90409061,21303.0,21302.0,0.01301927]
[1673965910040,0.32132892,21303.0,21302.0,0.01301927]
[1673965910287,0.32132892,21303.0,21302.0,0.11703927]
[1673965910533,0.00130192,21303.0,21302.0,0.01301927]
[1673965910810,0.90408761,21303.0,21302.0,0.01301927]
[1673965911849,1.11817859,21303.0,21302.0,0.01301927]
[1673965912139,1.11817859,21303.0,21300.0,0.01338683]
[1673965912140,1.20408761,21303.0,21300.0,0.01338683]
[1673965912392,1.23158178,21302.0,21300.0,0.01338683]
[1673965912640,0.320024,21301.0,21300.0,0.01338683]
[1673965912910,0.79722569,21301.0,21300.0,8.683e-05]
[1673965913155,0.15,21300.0,21295.0,0.01301927]
[1673965913405,0.85547564,21299.0,21295.0,0.01301927]
[1673965913657,0.92031667,21298.0,21295.0,0.01301927]
[1673965913912,0.98988706,21297.0,21295.0,0.01301927]
[1673965914167,0.98988706,21297.0,21287.0,0.01283492]
[1673965914168,3.00202431,21296.0,21287.0,0.01283492]
[1673965914434,1.16288231,21295.0,21287.0,0.01283492]
[1673965914735,1.93154157,21294.0,21293.0,0.01301927]
[1673965914969,1.089677,21294.0,21287.0,0.01283492]
[1673965915207,0.79221599,21293.0,21287.0,0.01283492]
[1673965915471,0.32006,21292.0,21287.0,0.19076087]
[1673965915723,0.619571,21296.0,21287.0,0.19076087]
[1673965915724,0.469526,21299.0,21288.0,0.19072595]
[1673965916050,0.15,21300.0,21288.0,0.19072595]
[1673965916051,0.091,21294.0,21289.0,0.469719]
[1673965916283,0.091,21294.0,21290.0,0.30374315]
[1673965916543,0.091,21294.0,21291.0,1.45013995]
[1673965916803,0.091,21294.0,21292.0,0.51078595]
[1673965917062,0.4216196,21303.0,21293.0,1.709334]
[1673965917063,0.00130192,21303.0,21293.0,1.709334]
[1673965917405,0.00130192,21303.0,21294.0,0.93135301]
[1673965917558,0.00130192,21303.0,21295.0,1.23135301]
[1673965917826,0.00130192,21303.0,21296.0,1.87046501]
[1673965918092,0.04392729,21303.0,21297.0,0.66078595]
[1673965918344,0.04392729,21303.0,21294.0,0.14591]
[1673965918345,0.51982706,21302.0,21294.0,0.14667]
[1673965918608,0.83988706,21301.0,21295.0,0.19072595]
[1673965918849,0.32006,21300.0,21296.0,0.001]
[1673965919123,0.04262537,21301.0,21296.0,0.08264939]
[1673965919367,0.04262537,21301.0,21296.0,0.4700016]
[1673965919617,0.32006,21300.0,21296.0,0.0004336]
[1673965919897,0.32006,21300.0,21289.0,0.469723]
[1673965919898,0.47006,21299.0,21289.0,0.469723]
[1673965920141,0.47006,21299.0,21297.0,0.001]
[1673965920142,1.26045412,21298.0,21297.0,0.001]
[1673965920396,1.26045412,21298.0,21289.0,0.19015955]
[1673965920397,0.001,21297.0,21289.0,0.19015955]
[1673965920671,0.001,21297.0,21287.0,0.46980092]
[1673965920672,0.469602,21295.0,21287.0,3.492e-05]
[1673965920919,0.99044334,21296.0,21287.0,3.492e-05]
[1673965920920,1.26102053,21294.0,21287.0,0.19076087]
[1673965921174,1.25983053,21293.0,21287.0,3.492e-05]
[1673965921456,2.20039953,21292.0,21287.0,3.492e-05]
[1673965921717,2.20039953,21292.0,21284.0,0.01248779]
[1673965921718,0.47720169,21288.0,21284.0,0.01248779]
[1673965921955,1.26107153,21287.0,21284.0,0.01248779]
[1673965922221,0.320111,21286.0,21284.0,0.01248779]
[1673965922707,0.15,21291.0,21284.0,0.01248779]
[1673965922708,0.82982676,21290.0,21284.0,0.01248779]
[1673965922956,0.320111,21289.0,21285.0,0.19072595]
[1673965923216,0.091,21293.0,21286.0,0.19072595]
[1673965923480,0.091,21293.0,21287.0,0.19072595]
[1673965923481,0.0091,21293.0,21287.0,0.19072595]
[1673965923742,0.30047187,21296.0,21288.0,0.19072595]
[1673965923743,0.320111,21292.0,21288.0,0.19072595]
[1673965924007,0.00047187,21296.0,21288.0,0.19072595]
[1673965924291,0.320111,21295.0,21289.0,0.19072595]
[1673965924548,0.00047187,21296.0,21290.0,1.19615625]
[1673965924805,0.00047187,21296.0,21291.0,0.19072595]
[1673965925078,0.00047187,21296.0,21292.0,0.19072595]
[1673965925340,0.00047187,21296.0,21293.0,0.19072595]
[1673965925617,0.00047187,21296.0,21294.0,1.45006695]
[1673965925909,0.42151796,21303.0,21295.0,1.13584365]
[1673965925910,0.00130192,21303.0,21295.0,1.13584365]
[1673965926169,0.00130192,21303.0,21297.0,0.939084]
[1673965926654,0.00130192,21303.0,21298.0,0.51083695]
[1673965926656,0.00130192,21303.0,21298.0,0.51933695]
[1673965926922,0.00130192,21303.0,21298.0,0.19072595]
[1673965927173,0.79731269,21302.0,21294.0,0.469612]
[1673965927436,0.79731269,21302.0,21297.0,0.085]
[1673965927437,0.320111,21302.0,21297.0,0.085]
[1673965927750,0.00230192,21303.0,21297.0,0.085]
[1673965927963,0.320111,21302.0,21297.0,0.085]
[1673965928224,0.82039347,21301.0,21297.0,0.085]
[1673965928494,1.55455492,21300.0,21297.0,0.085]
[1673965928759,0.15,21298.0,21290.0,0.612965]
[1673965929044,0.74067806,21297.0,21290.0,0.612965]
[1673965929302,0.320111,21296.0,21290.0,0.612965]
[1673965929576,0.320111,21296.0,21291.0,0.62046362]
[1673965929577,0.04319178,21296.0,21291.0,0.62046362]
[1673965929833,0.001,21298.0,21292.0,1.60013295]
[1673965930104,0.001,21298.0,21293.0,0.74067806]
[1673965930599,0.001,21298.0,21294.0,2.01326809]
[1673965930601,0.0001,21300.0,21294.0,2.01326809]
[1673965930856,0.001,21296.0,21295.0,1.38990401]
[1673965931119,0.0001,21300.0,21297.0,0.00040361]
[1673965931120,0.04329178,21300.0,21297.0,0.00040361]
[1673965931382,0.0001,21300.0,21298.0,1.91941795]
[1673965931662,0.0001,21300.0,21299.0,0.92896362]
[1673965931922,0.00130192,21303.0,21299.0,0.88823767]
[1673965932190,0.00130192,21303.0,21300.0,1.67973606]
[1673965932450,0.00130192,21303.0,21301.0,0.328611]
[1673965932718,0.00130192,21303.0,21298.0,0.469511]
[1673965933082,0.00130192,21303.0,21297.0,0.00040361]
[1673965933083,0.10756,21300.0,21299.0,0.072]
[1673965933340,0.10756,21300.0,21297.0,0.00040361]
[1673965933341,0.425671,21300.0,21297.0,0.00040361]
[1673965933624,0.15,21299.0,21293.0,0.43375523]
[1673965933887,0.320111,21298.0,21291.0,0.469664]
[1673965934141,0.34434146,21301.0,21289.0,0.01359674]
[1673965934142,0.84050447,21297.0,21289.0,0.01359674]
[1673965934680,0.47720169,21295.0,21289.0,0.01359674]
[1673965934945,2.34859481,21294.0,21289.0,0.01359674]
[1673965935200,1.66615861,21293.0,21289.0,0.19072595]
[1673965935461,0.320111,21292.0,21286.0,0.1431]
[1673965935729,0.320111,21292.0,21286.0,0.26632655]
[1673965935730,0.36330278,21291.0,21286.0,0.26632655]
[1673965936002,0.15,21294.0,21285.0,0.619798]
[1673965936003,0.41884592,21293.0,21285.0,0.619798]
[1673965936271,0.84050447,21292.0,21285.0,0.19072595]
[1673965936526,0.84050447,21292.0,21282.0,0.469864]
[1673965936527,1.25935039,21291.0,21282.0,0.469864]
[1673965936789,0.7821487,21290.0,21284.0,0.469835]
[1673965937092,0.52039347,21289.0,21279.0,0.619926]
[1673965937352,0.73895692,21288.0,21277.0,0.469984]
[1673965937615,0.469801,21286.0,21276.0,0.470004]
[1673965937879,0.469801,21286.0,21275.0,1.0351864]
[1673965937880,0.88895692,21285.0,21275.0,1.0351864]
[1673965938172,0.4585,21285.0,21284.0,0.005]
[1673965938484,0.6,21283.0,21276.0,0.19072595]
[1673965938744,1.70935039,21282.0,21275.0,1.0351864]
[1673965938999,0.71691134,21281.0,21275.0,1.0351864]
[1673965939261,0.52039347,21282.0,21275.0,1.0351864]
[1673965939262,0.320111,21280.0,21275.0,1.0351864]
[1673965939523,0.4398513,21282.0,21275.0,1.5052004]
[1673965939524,0.320111,21279.0,21275.0,1.5052004]
[1673965939790,0.320111,21278.0,21275.0,1.0351864]
[1673965940047,0.63813851,21283.0,21275.0,1.0351864]
[1673965940048,0.04319178,21277.0,21275.0,1.0351864]
[1673965940321,0.320111,21276.0,21275.0,1.0351864]
[1673965940620,0.320111,21276.0,21275.0,1.0361864]
[1673965940911,0.15,21288.0,21275.0,1.0361864]
[1673965940912,0.15,21288.0,21275.0,1.3552974]
[1673965941265,0.04319178,21288.0,21278.0,1.409849]
[1673965941519,0.61962,21294.0,21279.0,0.92968287]
[1673965941779,0.47720169,21293.0,21283.0,0.939703]
[1673965942031,0.47720169,21293.0,21284.0,0.49072595]
[1673965942032,0.52039347,21293.0,21284.0,0.49072595]
[1673965942290,0.47720169,21293.0,21284.0,0.19072595]
[1673965942585,0.469634,21294.0,21285.0,0.15]
[1673965942586,0.320111,21292.0,21285.0,0.15]
[1673965942851,0.41884592,21293.0,21286.0,0.469784]
[1673965943144,0.47720169,21291.0,21287.0,0.19072595]
[1673965943393,0.79731269,21290.0,21286.0,0.19072595]
[1673965943693,0.79731269,21290.0,21282.0,0.616194]
[1673965943694,0.320111,21289.0,21282.0,0.616194]
[1673965944130,0.320111,21289.0,21281.0,0.46988]
[1673965944131,0.73895692,21288.0,21285.0,0.141]
[1673965944383,0.47720169,21286.0,21275.0,1.0351864]
[1673965944705,0.13250494,21284.0,21275.0,1.0351864]
[1673965944948,1.25935039,21283.0,21275.0,1.0351864]
[1673965945244,1.03895692,21282.0,21275.0,1.0351864]
[1673965945509,1.41705369,21280.0,21275.0,1.0351864]
[1673965945765,0.47720169,21278.0,21275.0,1.0351864]
[1673965946041,2.02934139,21277.0,21275.0,1.0421864]
[1673965946283,0.79731269,21276.0,21275.0,1.0351864]
[1673965946554,1.51615861,21276.0,21275.0,1.0221864]
[1673965946803,0.79222622,21276.0,21275.0,1.0151864]
[1673965947070,0.79222622,21276.0,21275.0,1.0221864]
[1673965947071,0.31502453,21276.0,21275.0,1.0221864]
[1673965947325,0.48271757,21284.0,21275.0,1.0151864]
[1673965947326,0.13250494,21284.0,21275.0,1.0151864]